[Event "Titled Tuesday Blitz August 02 Early 2022"]
[White "Salem, A.R. Saleh"]
[Black "Manukyan, Sargis A."]
[WhiteFideId "9301348"]
[BlackFideId "13303970"]
[WhiteElo "2679"]
[BlackElo "2187"]
[Result "1-0"]
[Round "06"]
[TimeControl "180+1"]
[Date "2022.08.02"]
[WhiteClock "0:00:04"]
[BlackClock "0:00:07"]

1. d4 {[%clk 0:03:00]}  Nf6 {[%clk 0:02:55]} 2. c4 {[%clk 0:03:01]}  e6 {[%clk 0:02:51]} 3. Nc3 {[%clk 0:03:00]}  d5 {[%clk 0:02:41]} 4. Nf3 {[%clk 0:03:00]}  Be7 {[%clk 0:02:41]} 5. Bg5 {[%clk 0:03:00]}  h6 {[%clk 0:02:40]} 6. Bh4 {[%clk 0:03:00]}  O-O {[%clk 0:02:40]} 7. e3 {[%clk 0:03:01]}  b6 {[%clk 0:02:41]} 8. Be2 {[%clk 0:02:58]}  Bb7 {[%clk 0:02:40]} 9. O-O {[%clk 0:02:58]}  Nbd7 {[%clk 0:02:39]} 10. Rc1 {[%clk 0:02:56]}  dxc4 {[%clk 0:02:39]} 11. Bxc4 {[%clk 0:02:56]}  c5 {[%clk 0:02:40]} 12. Qe2 {[%clk 0:02:50]}  Ne4 {[%clk 0:02:32]} 13. Nxe4 {[%clk 0:02:48]}  Bxe4 {[%clk 0:02:23]} 14. Bg3 {[%clk 0:02:48]}  Bxf3 {[%clk 0:02:07]} 15. Qxf3 {[%clk 0:02:47]}  cxd4 {[%clk 0:02:08]} 16. exd4 {[%clk 0:02:33]}  Nf6 {[%clk 0:02:08]} 17. Qb7 {[%clk 0:02:06]}  Bd6 {[%clk 0:01:57]} 18. Be5 {[%clk 0:01:45]}  Qe7 {[%clk 0:01:53]} 19. Ba6 {[%clk 0:01:37]}  Qxb7 {[%clk 0:01:25]} 20. Bxb7 {[%clk 0:01:36]}  Rad8 {[%clk 0:01:26]} 21. Rfd1 {[%clk 0:01:23]}  Rfe8 {[%clk 0:01:18]} 22. h3 {[%clk 0:01:21]}  Re7 {[%clk 0:01:14]} 23. Bf3 {[%clk 0:01:19]}  Nd5 {[%clk 0:01:10]} 24. Rc6 {[%clk 0:01:08]}  Bxe5 {[%clk 0:01:01]} 25. dxe5 {[%clk 0:01:09]}  Red7 {[%clk 0:01:01]} 26. a3 {[%clk 0:01:10]}  g5 {[%clk 0:00:51]} 27. g3 {[%clk 0:01:06]}  Ne7 {[%clk 0:00:39]} 28. Rcd6 {[%clk 0:01:01]}  Rxd6 {[%clk 0:00:35]} 29. Rxd6 {[%clk 0:01:02]}  Rc8 {[%clk 0:00:17]} 30. Be4 {[%clk 0:01:02]}  Rc7 {[%clk 0:00:13]} 31. Kg2 {[%clk 0:00:52]}  Kg7 {[%clk 0:00:14]} 32. f4 {[%clk 0:00:51]}  gxf4 {[%clk 0:00:13]} 33. gxf4 {[%clk 0:00:52]}  Ng6 {[%clk 0:00:13]} 34. Kg3 {[%clk 0:00:52]}  Rc4 {[%clk 0:00:12]} 35. Bd3 {[%clk 0:00:49]}  Rc1 {[%clk 0:00:11]} 36. Rd7 {[%clk 0:00:36]}  Rg1+ {[%clk 0:00:09]} 37. Kf2 {[%clk 0:00:35]}  Rd1 {[%clk 0:00:10]} 38. Ke2 {[%clk 0:00:33]}  Rh1 {[%clk 0:00:06]} 39. Bc4 {[%clk 0:00:12]}  Rh2+ {[%clk 0:00:06]} 40. Kf1 {[%clk 0:00:04]}  Nxf4 {[%clk 0:00:05]} 41. Rxa7 {[%clk 0:00:04]}  Rxb2 {[%clk 0:00:05]} 42. h4 {[%clk 0:00:03]}  h5 {[%clk 0:00:05]} 43. Rb7 {[%clk 0:00:03]}  Kg6 {[%clk 0:00:05]} 44. a4 {[%clk 0:00:02]}  Kf5 {[%clk 0:00:05]} 45. a5 {[%clk 0:00:03]}  b5 {[%clk 0:00:03]} 46. Bxb5 {[%clk 0:00:03]}  Kxe5 {[%clk 0:00:03]} 47. a6 {[%clk 0:00:03]}  Ra2 {[%clk 0:00:03]} 48. a7 {[%clk 0:00:04]}  Ke4 {[%clk 0:00:04]} 49. Bc6+ {[%clk 0:00:04]}  Ke3 {[%clk 0:00:04]} 50. Kg1 {[%clk 0:00:02]}  Ra1+ {[%clk 0:00:04]} 51. Kh2 {[%clk 0:00:03]}  Ra2+ {[%clk 0:00:04]} 52. Kg1 {[%clk 0:00:03]}  Ra1+ {[%clk 0:00:05]} 53. Kh2 {[%clk 0:00:04]}  Ra2+ {[%clk 0:00:05]} 54. Kg3 {[%clk 0:00:05]}  Ne2+ {[%clk 0:00:04]} 55. Kg2 {[%clk 0:00:05]}  Nd4+ {[%clk 0:00:05]} 56. Rb2 {[%clk 0:00:03]}  Nxc6 {[%clk 0:00:05]} 57. Rxa2 {[%clk 0:00:03]}  Nxa7 {[%clk 0:00:06]} 58. Rxa7 {[%clk 0:00:04]}  Kf4 {[%clk 0:00:07]} 59. Rxf7+ {[%clk 0:00:04]} 1-0


[Site "https://www.chess.com"]

[Event "Titled Tuesday Blitz August 02 Early 2022"]
[White "Steinberg, Nitzan"]
[Black "Aditya Mittal"]
[WhiteFideId "2801795"]
[BlackFideId "35042025"]
[WhiteElo "2910"]
[BlackElo "2818"]
[Result "0-1"]
[Round "06"]
[TimeControl "180+1"]
[Date "2022.08.02"]
[WhiteClock "0:00:11"]
[BlackClock "0:00:11"]

1. Nf3 {[%clk 0:03:00]}  d5 {[%clk 0:02:59]} 2. d4 {[%clk 0:03:01]}  Nf6 {[%clk 0:03:00]} 3. Bf4 {[%clk 0:03:01]}  c5 {[%clk 0:02:59]} 4. e3 {[%clk 0:03:00]}  Nc6 {[%clk 0:03:00]} 5. c3 {[%clk 0:02:59]}  Qb6 {[%clk 0:02:58]} 6. Qb3 {[%clk 0:02:57]}  c4 {[%clk 0:02:57]} 7. Qc2 {[%clk 0:02:58]}  Bf5 {[%clk 0:02:57]} 8. Qc1 {[%clk 0:02:58]}  Nh5 {[%clk 0:02:57]} 9. Bg5 {[%clk 0:02:53]}  h6 {[%clk 0:02:56]} 10. Bh4 {[%clk 0:02:53]}  g5 {[%clk 0:02:56]} 11. Bg3 {[%clk 0:02:53]}  e6 {[%clk 0:02:56]} 12. Nbd2 {[%clk 0:02:51]}  Nxg3 {[%clk 0:02:52]} 13. hxg3 {[%clk 0:02:51]}  Bg7 {[%clk 0:02:53]} 14. Be2 {[%clk 0:02:44]}  O-O {[%clk 0:02:52]} 15. Bd1 {[%clk 0:02:43]}  Qc7 {[%clk 0:02:46]} 16. Bc2 {[%clk 0:02:35]}  Ne7 {[%clk 0:02:46]} 17. g4 {[%clk 0:02:19]}  Bg6 {[%clk 0:02:37]} 18. Bxg6 {[%clk 0:02:10]}  Nxg6 {[%clk 0:02:28]} 19. Qc2 {[%clk 0:02:06]}  f5 {[%clk 0:02:19]} 20. gxf5 {[%clk 0:02:00]}  exf5 {[%clk 0:02:20]} 21. g4 {[%clk 0:02:01]}  Qf7 {[%clk 0:02:21]} 22. Nh2 {[%clk 0:01:49]}  Nh4 {[%clk 0:01:58]} 23. O-O-O {[%clk 0:01:42]}  b5 {[%clk 0:01:58]} 24. gxf5 {[%clk 0:01:41]}  Qxf5 {[%clk 0:01:58]} 25. Qxf5 {[%clk 0:01:40]}  Rxf5 {[%clk 0:01:59]} 26. f3 {[%clk 0:01:36]}  Raf8 {[%clk 0:01:49]} 27. e4 {[%clk 0:01:32]}  Rf4 {[%clk 0:01:42]} 28. Rde1 {[%clk 0:01:25]}  Rd8 {[%clk 0:01:36]} 29. Rhg1 {[%clk 0:01:19]}  a5 {[%clk 0:01:22]} 30. Ng4 {[%clk 0:01:19]}  Nxf3 {[%clk 0:01:16]} 31. Nxf3 {[%clk 0:01:19]}  Rxf3 {[%clk 0:01:17]} 32. exd5 {[%clk 0:01:03]}  Rxd5 {[%clk 0:01:18]} 33. a4 {[%clk 0:01:01]}  b4 {[%clk 0:01:18]} 34. Ne3 {[%clk 0:01:01]}  Rd8 {[%clk 0:01:13]} 35. Rgf1 {[%clk 0:01:00]}  Rxf1 {[%clk 0:00:46]} 36. Rxf1 {[%clk 0:01:00]}  h5 {[%clk 0:00:43]} 37. Kd2 {[%clk 0:00:52]}  g4 {[%clk 0:00:21]} 38. Nxc4 {[%clk 0:00:50]}  Bxd4 {[%clk 0:00:19]} 39. Nxa5 {[%clk 0:00:39]}  bxc3+ {[%clk 0:00:19]} 40. Kc2 {[%clk 0:00:36]}  cxb2 {[%clk 0:00:19]} 41. Nb3 {[%clk 0:00:24]}  Rc8+ {[%clk 0:00:15]} 42. Kb1 {[%clk 0:00:24]}  Bg7 {[%clk 0:00:15]} 43. a5 {[%clk 0:00:24]}  g3 {[%clk 0:00:15]} 44. Rf5 {[%clk 0:00:23]}  h4 {[%clk 0:00:13]} 45. Rg5 {[%clk 0:00:23]}  Kh7 {[%clk 0:00:12]} 46. Nc5 {[%clk 0:00:17]}  Re8 {[%clk 0:00:11]} 47. Nd3 {[%clk 0:00:15]}  Rd8 {[%clk 0:00:10]} 48. Nxb2 {[%clk 0:00:09]}  Rb8 {[%clk 0:00:11]} 49. a6 {[%clk 0:00:09]}  Rxb2+ {[%clk 0:00:11]} 50. Kc1 {[%clk 0:00:10]}  Ra2 {[%clk 0:00:11]} 51. Rg4 {[%clk 0:00:10]}  Rxa6 {[%clk 0:00:11]} 52. Rxh4+ {[%clk 0:00:11]}  Rh6 {[%clk 0:00:11]} 53. Rg4 {[%clk 0:00:11]}  Rg6 {[%clk 0:00:11]} 0-1


[Site "https://www.chess.com"]

[Event "Titled Tuesday Blitz August 02 Early 2022"]
[White "Tomb, Maroun"]
[Black "Drygalov, Sergey"]
[WhiteFideId "5300398"]
[BlackFideId "24171743"]
[WhiteElo "2545"]
[BlackElo "2523"]
[Result "0-1"]
[Round "06"]
[TimeControl "180+1"]
[Date "2022.08.02"]
[WhiteClock "0:00:36"]
[BlackClock "0:00:59"]

1. e4 {[%clk 0:03:00]}  c5 {[%clk 0:02:59]} 2. Ne2 {[%clk 0:03:00]}  d6 {[%clk 0:03:00]} 3. g3 {[%clk 0:03:00]}  Nf6 {[%clk 0:02:59]} 4. Bg2 {[%clk 0:03:00]}  g6 {[%clk 0:02:59]} 5. c3 {[%clk 0:03:01]}  Bg7 {[%clk 0:02:59]} 6. d4 {[%clk 0:03:02]}  O-O {[%clk 0:02:59]} 7. O-O {[%clk 0:03:02]}  Nc6 {[%clk 0:02:55]} 8. h3 {[%clk 0:03:01]}  e5 {[%clk 0:02:39]} 9. Be3 {[%clk 0:02:59]}  b6 {[%clk 0:02:28]} 10. Nd2 {[%clk 0:02:55]}  Ba6 {[%clk 0:02:26]} 11. d5 {[%clk 0:02:53]}  Ne7 {[%clk 0:02:26]} 12. f4 {[%clk 0:02:49]}  Nh5 {[%clk 0:02:22]} 13. f5 {[%clk 0:02:46]}  Bxe2 {[%clk 0:02:19]} 14. Qxe2 {[%clk 0:02:45]}  Nxg3 {[%clk 0:02:18]} 15. Qf2 {[%clk 0:02:43]}  Nxf1 {[%clk 0:02:15]} 16. Rxf1 {[%clk 0:02:38]}  f6 {[%clk 0:02:15]} 17. h4 {[%clk 0:02:35]}  Kh8 {[%clk 0:02:15]} 18. h5 {[%clk 0:02:33]}  gxf5 {[%clk 0:02:05]} 19. exf5 {[%clk 0:02:21]}  Ng8 {[%clk 0:01:57]} 20. Ne4 {[%clk 0:01:45]}  Bh6 {[%clk 0:01:56]} 21. Qd2 {[%clk 0:01:42]}  Bxe3+ {[%clk 0:01:51]} 22. Qxe3 {[%clk 0:01:43]}  Rf7 {[%clk 0:01:47]} 23. Rf3 {[%clk 0:01:35]}  Qf8 {[%clk 0:01:47]} 24. Rg3 {[%clk 0:01:32]}  Rd8 {[%clk 0:01:45]} 25. h6 {[%clk 0:01:24]}  Nxh6 {[%clk 0:01:45]} 26. Qf3 {[%clk 0:01:17]}  Rg7 {[%clk 0:01:36]} 27. Rh3 {[%clk 0:01:15]}  Ng8 {[%clk 0:01:34]} 28. Qh5 {[%clk 0:01:12]}  Qf7 {[%clk 0:01:27]} 29. Qh4 {[%clk 0:01:12]}  Qxd5 {[%clk 0:01:16]} 30. Nxf6 {[%clk 0:01:01]}  Qd1+ {[%clk 0:01:16]} 31. Kh2 {[%clk 0:01:01]}  Nxf6 {[%clk 0:01:14]} 32. Qxf6 {[%clk 0:01:02]}  Re8 {[%clk 0:01:02]} 33. c4 {[%clk 0:00:36]}  Qg4 {[%clk 0:00:59]} 0-1


[Site "https://www.chess.com"]

[Event "Titled Tuesday Blitz August 02 Early 2022"]
[White "Zhigalko, Sergei"]
[Black "Nakamura, Hikaru"]
[WhiteFideId "13502956"]
[BlackFideId "2016192"]
[WhiteElo "2905"]
[BlackElo "3206"]
[Result "0-1"]
[Round "06"]
[TimeControl "180+1"]
[Date "2022.08.02"]
[WhiteClock "0:00:03"]
[BlackClock "0:00:40"]

1. e4 {[%clk 0:03:00]}  e5 {[%clk 0:02:59]} 2. Nf3 {[%clk 0:03:01]}  Nc6 {[%clk 0:03:00]} 3. Bb5 {[%clk 0:03:00]}  Nf6 {[%clk 0:02:59]} 4. d3 {[%clk 0:03:00]}  Bc5 {[%clk 0:02:59]} 5. O-O {[%clk 0:02:59]}  O-O {[%clk 0:02:59]} 6. Bxc6 {[%clk 0:02:57]}  bxc6 {[%clk 0:02:56]} 7. Nxe5 {[%clk 0:02:57]}  Re8 {[%clk 0:02:57]} 8. Nf3 {[%clk 0:02:55]}  h6 {[%clk 0:02:47]} 9. h3 {[%clk 0:02:49]}  d5 {[%clk 0:02:42]} 10. e5 {[%clk 0:02:50]}  Nd7 {[%clk 0:02:42]} 11. Bf4 {[%clk 0:02:40]}  Nf8 {[%clk 0:02:37]} 12. Nbd2 {[%clk 0:02:35]}  a5 {[%clk 0:02:37]} 13. a4 {[%clk 0:02:35]}  Ne6 {[%clk 0:02:36]} 14. Bg3 {[%clk 0:02:33]}  Bb6 {[%clk 0:02:36]} 15. Re1 {[%clk 0:02:25]}  c5 {[%clk 0:02:33]} 16. Nf1 {[%clk 0:02:22]}  c4 {[%clk 0:02:30]} 17. Ne3 {[%clk 0:02:11]}  cxd3 {[%clk 0:02:29]} 18. cxd3 {[%clk 0:01:42]}  Nd4 {[%clk 0:02:28]} 19. Rc1 {[%clk 0:01:31]}  Be6 {[%clk 0:02:20]} 20. b3 {[%clk 0:00:54]}  Rb8 {[%clk 0:02:16]} 21. Rb1 {[%clk 0:00:28]}  Qe7 {[%clk 0:01:58]} 22. Nxd4 {[%clk 0:00:28]}  Bxd4 {[%clk 0:01:59]} 23. Qf3 {[%clk 0:00:29]}  Qd7 {[%clk 0:01:56]} 24. Bf4 {[%clk 0:00:19]}  Kh7 {[%clk 0:01:48]} 25. Rec1 {[%clk 0:00:16]}  c6 {[%clk 0:01:25]} 26. Qh5 {[%clk 0:00:16]}  Rb4 {[%clk 0:01:07]} 27. Nc2 {[%clk 0:00:16]}  Bxf2+ {[%clk 0:01:07]} 28. Kxf2 {[%clk 0:00:12]}  Rxf4+ {[%clk 0:01:08]} 29. Kg3 {[%clk 0:00:11]}  Rf5 {[%clk 0:01:00]} 30. Qe2 {[%clk 0:00:12]}  d4 {[%clk 0:01:00]} 31. Rf1 {[%clk 0:00:07]}  Rg5+ {[%clk 0:00:59]} 32. Kh2 {[%clk 0:00:07]}  Bd5 {[%clk 0:01:00]} 33. Rf2 {[%clk 0:00:03]}  Rexe5 {[%clk 0:01:00]} 34. Qd2 {[%clk 0:00:03]}  Qd6 {[%clk 0:00:56]} 35. Kh1 {[%clk 0:00:02]}  c5 {[%clk 0:00:54]} 36. Re1 {[%clk 0:00:02]}  Bxb3 {[%clk 0:00:53]} 37. Rxe5 {[%clk 0:00:02]}  Qxe5 {[%clk 0:00:51]} 38. Ne1 {[%clk 0:00:03]}  Bd5 {[%clk 0:00:49]} 39. Nf3 {[%clk 0:00:03]}  Bxf3 {[%clk 0:00:49]} 40. Rxf3 {[%clk 0:00:04]}  Qc7 {[%clk 0:00:44]} 41. Qf2 {[%clk 0:00:03]}  f6 {[%clk 0:00:45]} 42. Qe1 {[%clk 0:00:03]}  Re5 {[%clk 0:00:45]} 43. Qg3 {[%clk 0:00:02]}  c4 {[%clk 0:00:43]} 44. dxc4 {[%clk 0:00:02]}  Qxc4 {[%clk 0:00:43]} 45. Kh2 {[%clk 0:00:03]}  Qe6 {[%clk 0:00:41]} 46. Rb3 {[%clk 0:00:03]}  Re3 {[%clk 0:00:39]} 47. Rxe3 {[%clk 0:00:01]}  dxe3 {[%clk 0:00:39]} 48. Qg4 {[%clk 0:00:02]}  Qxg4 {[%clk 0:00:39]} 49. hxg4 {[%clk 0:00:03]}  e2 {[%clk 0:00:40]} 0-1


[Site "https://www.chess.com"]

[Event "Titled Tuesday Blitz August 02 Early 2022"]
[White "Alexiadis, Hristos"]
[Black "Mardov, Dimitar"]
[WhiteFideId "4249623"]
[BlackFideId "30919495"]
[WhiteElo "2416"]
[BlackElo "2185"]
[Result "1-0"]
[Round "07"]
[TimeControl "180+1"]
[Date "2022.08.02"]
[WhiteClock "0:01:18"]
[BlackClock "0:00:07"]

1. d4 {[%clk 0:03:00]}  Nf6 {[%clk 0:02:59]} 2. c4 {[%clk 0:03:00]}  e6 {[%clk 0:02:59]} 3. g3 {[%clk 0:03:01]}  d5 {[%clk 0:02:59]} 4. Bg2 {[%clk 0:03:01]}  dxc4 {[%clk 0:03:00]} 5. Nf3 {[%clk 0:03:01]}  Nc6 {[%clk 0:03:00]} 6. O-O {[%clk 0:03:01]}  Rb8 {[%clk 0:03:00]} 7. a4 {[%clk 0:02:50]}  a6 {[%clk 0:02:45]} 8. a5 {[%clk 0:02:50]}  b5 {[%clk 0:02:38]} 9. axb6 {[%clk 0:02:45]}  cxb6 {[%clk 0:02:39]} 10. Bf4 {[%clk 0:02:41]}  Bd6 {[%clk 0:02:34]} 11. Ne5 {[%clk 0:02:40]}  Ne7 {[%clk 0:02:26]} 12. Nxc4 {[%clk 0:02:39]}  Bxf4 {[%clk 0:02:26]} 13. gxf4 {[%clk 0:02:40]}  O-O {[%clk 0:02:25]} 14. Nc3 {[%clk 0:02:38]}  Nf5 {[%clk 0:02:12]} 15. e3 {[%clk 0:02:38]}  Nh4 {[%clk 0:02:08]} 16. Bh1 {[%clk 0:02:33]}  Bb7 {[%clk 0:02:03]} 17. Bxb7 {[%clk 0:02:29]}  Rxb7 {[%clk 0:02:04]} 18. Rxa6 {[%clk 0:02:28]}  b5 {[%clk 0:00:59]} 19. Ne5 {[%clk 0:02:27]}  b4 {[%clk 0:00:59]} 20. Ne2 {[%clk 0:02:27]}  Qd5 {[%clk 0:00:57]} 21. f3 {[%clk 0:02:26]}  Rc7 {[%clk 0:00:45]} 22. Qd3 {[%clk 0:02:15]}  Nd7 {[%clk 0:00:37]} 23. e4 {[%clk 0:01:59]}  Nxe5 {[%clk 0:00:37]} 24. fxe5 {[%clk 0:01:59]}  Qd8 {[%clk 0:00:38]} 25. f4 {[%clk 0:01:53]}  Qc8 {[%clk 0:00:37]} 26. Raa1 {[%clk 0:01:50]}  f5 {[%clk 0:00:30]} 27. exf6 {[%clk 0:01:43]}  Nf5 {[%clk 0:00:30]} 28. exf5 {[%clk 0:01:38]}  Rxf6 {[%clk 0:00:26]} 29. Rac1 {[%clk 0:01:36]}  exf5 {[%clk 0:00:21]} 30. Rxc7 {[%clk 0:01:32]}  Qxc7 {[%clk 0:00:22]} 31. d5 {[%clk 0:01:32]}  Qc5+ {[%clk 0:00:18]} 32. Qd4 {[%clk 0:01:29]}  Qc2 {[%clk 0:00:12]} 33. Kf2 {[%clk 0:01:26]}  Rh6 {[%clk 0:00:10]} 34. Rh1 {[%clk 0:01:19]}  Rd6 {[%clk 0:00:08]} 35. Rc1 {[%clk 0:01:18]}  Qb3 {[%clk 0:00:07]} 36. Rc8+ {[%clk 0:01:18]}  Kf7 {[%clk 0:00:08]} 37. Rc7+ {[%clk 0:01:18]}  Ke8 {[%clk 0:00:07]} 38. Qe5+ {[%clk 0:01:18]} 1-0


[Site "https://www.chess.com"]

[Event "Titled Tuesday Blitz August 02 Early 2022"]
[White "Andreikin, Dmitry"]
[Black "Xiong, Jeffery"]
[WhiteFideId "4158814"]
[BlackFideId "2047640"]
[WhiteElo "2736"]
[BlackElo "2714"]
[Result "1-0"]
[Round "07"]
[TimeControl "180+1"]
[Date "2022.08.02"]
[WhiteClock "0:00:41"]
[BlackClock "0:00:19"]

1. d4 {[%clk 0:03:00]}  d5 {[%clk 0:02:55]} 2. c4 {[%clk 0:03:01]}  e6 {[%clk 0:02:55]} 3. Nf3 {[%clk 0:03:01]}  Nf6 {[%clk 0:02:54]} 4. g3 {[%clk 0:03:01]}  dxc4 {[%clk 0:02:54]} 5. Bg2 {[%clk 0:03:01]}  c6 {[%clk 0:02:54]} 6. a4 {[%clk 0:02:59]}  Bb4+ {[%clk 0:02:55]} 7. Bd2 {[%clk 0:02:57]}  a5 {[%clk 0:02:55]} 8. Qc2 {[%clk 0:02:48]}  O-O {[%clk 0:02:55]} 9. O-O {[%clk 0:02:44]}  Bxd2 {[%clk 0:02:37]} 10. Nbxd2 {[%clk 0:02:44]}  b5 {[%clk 0:02:38]} 11. b3 {[%clk 0:02:44]}  cxb3 {[%clk 0:02:35]} 12. Nxb3 {[%clk 0:02:45]}  b4 {[%clk 0:02:34]} 13. Ne5 {[%clk 0:02:41]}  Nd5 {[%clk 0:02:26]} 14. Rfc1 {[%clk 0:02:24]}  Nc3 {[%clk 0:02:19]} 15. e3 {[%clk 0:02:24]}  Ba6 {[%clk 0:02:17]} 16. Bf3 {[%clk 0:02:20]}  f6 {[%clk 0:02:16]} 17. Nd3 {[%clk 0:02:19]}  Bxd3 {[%clk 0:02:14]} 18. Qxd3 {[%clk 0:02:19]}  Nd7 {[%clk 0:02:15]} 19. Qc4 {[%clk 0:02:09]}  Qe7 {[%clk 0:02:15]} 20. Qxc6 {[%clk 0:02:05]}  Rfc8 {[%clk 0:02:09]} 21. Qb7 {[%clk 0:02:05]}  Qd8 {[%clk 0:01:51]} 22. Nxa5 {[%clk 0:01:41]}  Rxa5 {[%clk 0:01:45]} 23. Qxb4 {[%clk 0:01:41]}  Rf5 {[%clk 0:01:45]} 24. Bg4 {[%clk 0:01:21]}  Qc7 {[%clk 0:00:53]} 25. a5 {[%clk 0:01:08]}  Nf8 {[%clk 0:00:35]} 26. a6 {[%clk 0:00:48]}  h5 {[%clk 0:00:19]} 27. Rxc3 {[%clk 0:00:41]} 1-0


[Site "https://www.chess.com"]

[Event "Titled Tuesday Blitz August 02 Early 2022"]
[White "Cruz, Jonathan"]
[Black "Demchenko, Anton"]
[WhiteFideId "3802124"]
[BlackFideId "4160258"]
[WhiteElo "2406"]
[BlackElo "2539"]
[Result "1-0"]
[Round "07"]
[TimeControl "180+1"]
[Date "2022.08.02"]
[WhiteClock "0:00:49"]
[BlackClock "0:00:01"]

1. Nf3 {[%clk 0:02:59]}  f5 {[%clk 0:02:58]} 2. g3 {[%clk 0:02:59]}  Nf6 {[%clk 0:02:58]} 3. Bg2 {[%clk 0:02:59]}  e6 {[%clk 0:02:59]} 4. O-O {[%clk 0:03:00]}  Be7 {[%clk 0:02:58]} 5. d3 {[%clk 0:03:00]}  O-O {[%clk 0:02:57]} 6. Nc3 {[%clk 0:03:01]}  d6 {[%clk 0:02:57]} 7. e4 {[%clk 0:03:00]}  e5 {[%clk 0:02:53]} 8. exf5 {[%clk 0:02:56]}  Bxf5 {[%clk 0:02:52]} 9. Ng5 {[%clk 0:02:55]}  Nc6 {[%clk 0:02:49]} 10. Nd5 {[%clk 0:02:55]}  Kh8 {[%clk 0:02:35]} 11. Nxe7 {[%clk 0:02:52]}  Qxe7 {[%clk 0:02:32]} 12. Be3 {[%clk 0:02:50]}  d5 {[%clk 0:02:24]} 13. Re1 {[%clk 0:02:42]}  Qd7 {[%clk 0:01:47]} 14. Bc5 {[%clk 0:02:37]}  Rfe8 {[%clk 0:01:44]} 15. a4 {[%clk 0:02:28]}  a5 {[%clk 0:01:39]} 16. Qd2 {[%clk 0:02:26]}  Rad8 {[%clk 0:01:36]} 17. Nf3 {[%clk 0:02:22]}  b6 {[%clk 0:01:28]} 18. Ba3 {[%clk 0:02:22]}  Bg4 {[%clk 0:01:25]} 19. b3 {[%clk 0:02:09]}  h6 {[%clk 0:01:17]} 20. Bb2 {[%clk 0:02:02]}  Qd6 {[%clk 0:01:16]} 21. Ba3 {[%clk 0:02:01]}  Qe6 {[%clk 0:01:07]} 22. Bb2 {[%clk 0:01:58]}  Bxf3 {[%clk 0:01:05]} 23. Bxf3 {[%clk 0:01:58]}  Qf5 {[%clk 0:01:06]} 24. Bg2 {[%clk 0:01:56]}  Nb4 {[%clk 0:00:53]} 25. Bc3 {[%clk 0:01:49]}  c5 {[%clk 0:00:50]} 26. Re2 {[%clk 0:01:43]}  e4 {[%clk 0:00:47]} 27. Rae1 {[%clk 0:01:39]}  exd3 {[%clk 0:00:36]} 28. Rxe8+ {[%clk 0:01:23]}  Rxe8 {[%clk 0:00:36]} 29. Rxe8+ {[%clk 0:01:23]}  Nxe8 {[%clk 0:00:37]} 30. Qxh6+ {[%clk 0:01:17]}  Kg8 {[%clk 0:00:38]} 31. Qe3 {[%clk 0:01:14]}  Nf6 {[%clk 0:00:25]} 32. Bxb4 {[%clk 0:01:14]}  axb4 {[%clk 0:00:16]} 33. cxd3 {[%clk 0:01:14]}  Kf7 {[%clk 0:00:15]} 34. Bf3 {[%clk 0:01:12]}  Qe6 {[%clk 0:00:12]} 35. Qf4 {[%clk 0:01:06]}  Qd7 {[%clk 0:00:09]} 36. Kg2 {[%clk 0:01:02]}  Kg8 {[%clk 0:00:07]} 37. g4 {[%clk 0:01:00]}  Qd8 {[%clk 0:00:06]} 38. Qf5 {[%clk 0:00:57]}  d4 {[%clk 0:00:04]} 39. g5 {[%clk 0:00:57]}  Nh7 {[%clk 0:00:04]} 40. Bd5+ {[%clk 0:00:55]}  Kh8 {[%clk 0:00:04]} 41. h4 {[%clk 0:00:53]}  Nf8 {[%clk 0:00:03]} 42. Qf7 {[%clk 0:00:51]}  Nd7 {[%clk 0:00:01]} 43. Qh5# {[%clk 0:00:49]} 1-0


[Site "https://www.chess.com"]

[Event "Titled Tuesday Blitz August 02 Early 2022"]
[White "Hebden, Mark L"]
[Black "Vivekananthan, Anish"]
[WhiteFideId "400084"]
[BlackFideId "2090775"]
[WhiteElo "2457"]
[BlackElo "2735"]
[Result "1-0"]
[Round "07"]
[TimeControl "180+1"]
[Date "2022.08.02"]
[WhiteClock "0:00:18"]
[BlackClock "0:00:02"]

1. d4 {[%clk 0:03:00]}  d5 {[%clk 0:02:59]} 2. Nf3 {[%clk 0:03:01]}  Nf6 {[%clk 0:02:57]} 3. c4 {[%clk 0:03:01]}  c6 {[%clk 0:02:56]} 4. e3 {[%clk 0:02:59]}  e6 {[%clk 0:02:55]} 5. Bd3 {[%clk 0:02:54]}  Be7 {[%clk 0:02:53]} 6. O-O {[%clk 0:02:50]}  O-O {[%clk 0:02:53]} 7. b3 {[%clk 0:02:49]}  Nbd7 {[%clk 0:02:44]} 8. Bb2 {[%clk 0:02:49]}  b6 {[%clk 0:02:44]} 9. Nc3 {[%clk 0:02:48]}  Bb7 {[%clk 0:02:43]} 10. Qc2 {[%clk 0:02:46]}  Rc8 {[%clk 0:02:41]} 11. Ne5 {[%clk 0:02:44]}  c5 {[%clk 0:02:21]} 12. Nxd7 {[%clk 0:02:16]}  Qxd7 {[%clk 0:02:19]} 13. cxd5 {[%clk 0:02:13]}  cxd4 {[%clk 0:02:07]} 14. exd4 {[%clk 0:02:06]}  Bxd5 {[%clk 0:02:01]} 15. Qe2 {[%clk 0:02:01]}  Bb7 {[%clk 0:01:57]} 16. Rad1 {[%clk 0:01:59]}  Rfd8 {[%clk 0:01:43]} 17. Kh1 {[%clk 0:01:52]}  Rxc3 {[%clk 0:01:25]} 18. Bxc3 {[%clk 0:01:46]}  Qc6 {[%clk 0:01:24]} 19. d5 {[%clk 0:01:42]}  Nxd5 {[%clk 0:01:10]} 20. Be5 {[%clk 0:01:07]}  Nf4 {[%clk 0:01:08]} 21. Be4 {[%clk 0:00:54]}  Nxe2 {[%clk 0:00:51]} 22. Rxd8+ {[%clk 0:00:53]}  Bxd8 {[%clk 0:00:51]} 23. Bxc6 {[%clk 0:00:53]}  Bxc6 {[%clk 0:00:52]} 24. Re1 {[%clk 0:00:47]}  Bb5 {[%clk 0:00:50]} 25. a4 {[%clk 0:00:46]}  Ba6 {[%clk 0:00:49]} 26. Rd1 {[%clk 0:00:44]}  Bf6 {[%clk 0:00:37]} 27. Bxf6 {[%clk 0:00:42]}  gxf6 {[%clk 0:00:38]} 28. Rd7 {[%clk 0:00:42]}  Nc1 {[%clk 0:00:26]} 29. b4 {[%clk 0:00:37]}  Bc4 {[%clk 0:00:23]} 30. Rxa7 {[%clk 0:00:36]}  Nd3 {[%clk 0:00:18]} 31. a5 {[%clk 0:00:33]}  bxa5 {[%clk 0:00:15]} 32. bxa5 {[%clk 0:00:34]}  Nxf2+ {[%clk 0:00:13]} 33. Kg1 {[%clk 0:00:34]}  Ne4 {[%clk 0:00:12]} 34. a6 {[%clk 0:00:34]}  Kg7 {[%clk 0:00:07]} 35. Ra8 {[%clk 0:00:30]}  Nc5 {[%clk 0:00:04]} 36. a7 {[%clk 0:00:29]}  Bd5 {[%clk 0:00:04]} 37. Rd8 {[%clk 0:00:28]}  Be4 {[%clk 0:00:04]} 38. Rd4 {[%clk 0:00:27]}  Ba8 {[%clk 0:00:04]} 39. Rc4 {[%clk 0:00:27]}  Ne4 {[%clk 0:00:02]} 40. Rc8 {[%clk 0:00:27]}  Bd5 {[%clk 0:00:02]} 41. Rd8 {[%clk 0:00:26]}  Bc6 {[%clk 0:00:02]} 42. Rc8 {[%clk 0:00:25]}  Bd5 {[%clk 0:00:02]} 43. a8=Q {[%clk 0:00:24]}  Bxa8 {[%clk 0:00:02]} 44. Rxa8 {[%clk 0:00:25]}  f5 {[%clk 0:00:03]} 45. g3 {[%clk 0:00:21]}  h5 {[%clk 0:00:03]} 46. Kg2 {[%clk 0:00:22]}  Kg6 {[%clk 0:00:04]} 47. Kf3 {[%clk 0:00:22]}  f6 {[%clk 0:00:04]} 48. Ra7 {[%clk 0:00:21]}  Ng5+ {[%clk 0:00:03]} 49. Ke3 {[%clk 0:00:21]}  e5 {[%clk 0:00:04]} 50. Kd3 {[%clk 0:00:19]}  Nf3 {[%clk 0:00:02]} 51. h4 {[%clk 0:00:18]} 1-0


[Site "https://www.chess.com"]